[Event "WTCC-50 2018"]
[Site "Radebeul"]
[Date "2018.07.10"]
[Round "4"]
[White "Taggatz, Mario"]
[Black "Rewitz, Poul"]
[Result "1/2-1/2"]
[ECO "A48"]
[WhiteElo "2191"]
[BlackElo "2289"]
[Annotator "NA"]
[PlyCount "254"]
[EventDate "2018.07.07"]
[EventType "team-tourn"]
[EventCountry "GER"]
[SourceTitle "playchess.com"]
[Source "ChessBase"]
[SourceQuality "1"]
[TimeControl "40/5400+30:1800+30"]

1. d4 {[%emt 0:00:00]} Nf6 {[%emt 0:00:21]} 2. Nf3 {[%emt 0:00:00]} g6 {[%emt 0:01:56]} 3. Bg5 {[%emt 0:00:00]} Ne4 {[%emt 0:01:33]} 4. Bh4 {[%emt 0:00:00]} d5 {[%emt 0:01:22]} 5. e3 {[%emt 0:01:45]} c5 {[%emt 0:00:43] D03: Damenbauernspiele} (5... Bg7 6. Be2 O-O 7. O-O c5 8. Nbd2 Nc6 9. c3 cxd4 10. exd4 h6 11. Ne1 Nd6 12. Bg3 Nf5 13. Bf4 e5 14. Bxe5 Nxe5 15. dxe5 Bxe5 16. Nef3 Bg7 17. Nb3 {½-½ (35) Karthikeyan,P (2502)-Kiran,M (2160) Mumbai 2017}) 6. c3 {[%emt 0:00:52]} Qb6 {[%emt 0:01:36]} 7. Qb3 {[%emt 0:01:54]} c4 {[%emt 0:05:39]} 8. Qxb6 $146 {[%emt 0:03:18]} ({Vorgänger:} 8. Qc2 Bf5 9. Qc1 Nd7 10. Be2 Bg7 11. O-O Ndf6 12. Nbd2 Qc7 13. Nxe4 Nxe4 {1-0 (35) Maia,L (2279)-Martinez,A (2068) Sao Bernardo do Campo 2012}) 8... axb6 {[%emt 0:00:08]} 9. Nbd2 {[%emt 0:00:09]} Nxd2 {[%emt 0:03:59]} 10. Nxd2 {[%emt 0:02:49]} f5 {[%emt 0:03:16]} 11. f3 {[%emt 0:05:12]} Bh6 {[%emt 0:00:31]} 12. e4 {[%emt 0:03:20]} e6 {[%emt 0:00:33]} 13. a3 {[%emt 0:08:22]} Nc6 {[%emt 0:00:46]} 14. g4 {[%emt 0:03:32]} Na5 {[%emt 0:06:19]} 15. g5 {[%emt 0:02:09]} Bg7 {[%emt 0:03:02]} 16. exd5 {[%emt 0:04:47]} exd5 {[%emt 0:00:37]} 17. f4 {[%emt 0:00:32]} Kd7 {[%emt 0:09:50]} 18. Bg2 {[%emt 0:03:29]} Kd6 {[%emt 0:10:51]} 19. Kf2 {[%emt 0:04:10]} Bd7 {[%emt 0:01:24]} 20. Rae1 {[%emt 0:03:46]} Ba4 {[%emt 0:04:49]} 21. Re2 {[%emt 0:05:16]} Rae8 {[%emt 0:03:28]} 22. Rhe1 {[%emt 0:01:51]} Rxe2+ {[%emt 0:00:49]} 23. Rxe2 {[%emt 0:00:46]} Bd1 {[%emt 0:00:57]} 24. Re1 {[%emt 0:05:18]} Bc2 {[%emt 0:00:22]} 25. Bg3 {[%emt 0:02:59]} Be4 {[%emt 0:07:15]} 26. h4 {[%emt 0:08:29]} h5 {[%emt 0:02:16]} 27. Bf1 {[%emt 0:07:26]} b5 {[%emt 0:05:19]} 28. Nf3 {[%emt 0:04:29]} Bxf3 {[%emt 0:04:32]} 29. Kxf3 {[%emt 0:00:06]} Nb3 {[%emt 0:00:35]} 30. Ke2 {[%emt 0:05:01]} Re8+ {[%emt 0:13:10]} 31. Kd1 {[%emt 0:00:14]} Ra8 {[%emt 0:02:06]} 32. Bf2 {[%emt 0:03:01]} Na5 {[%emt 0:00:38]} 33. Bg2 {[%emt 0:01:45]} Nc6 {[%emt 0:00:15]} 34. Kc2 {[%emt 0:01:03]} Rd8 {[%emt 0:00:23]} 35. Bf3 {[%emt 0:01:04]} Ne7 {[%emt 0:00:41]} 36. Re2 {[%emt 0:03:02]} Nc8 {[%emt 0:00:21]} 37. Kc1 {[%emt 0:01:14]} Nb6 {[%emt 0:00:22]} 38. Re1 {[%emt 0:00:43]} Na8 {[%emt 0:00:49]} 39. Re2 {[%emt 0:02:21]} Nc7 {[%emt 0:00:15]} 40. Re1 {[%emt 0:01:10]} Ne6 {[%emt 0:00:25]} 41. Bg3 {[%emt 0:04:24]} Ra8 {[%emt 0:02:47]} 42. Kb1 {[%emt 0:03:51]} Re8 {[%emt 0:01:47]} 43. Re2 {[%emt 0:01:51]} Kc6 {[%emt 0:06:29]} 44. Re1 {[%emt 0:00:52]} Nc7 {[%emt 0:00:49]} 45. Rxe8 {[%emt 0:00:22]} Nxe8 {[%emt 0:00:05]} 46. Kc2 {[%emt 0:02:59]} Nc7 {[%emt 0:01:10]} 47. Kd2 {[%emt 0:00:21]} Kd6 {[%emt 0:01:45]} 48. Bd1 {[%emt 0:02:44]} Ke6 {[%emt 0:00:47]} 49. Ke3 {[%emt 0:00:48]} Bf8 {[%emt 0:00:34]} 50. Bc2 {[%emt 0:01:09]} Ne8 {[%emt 0:00:26]} 51. Bd1 {[%emt 0:00:31]} Nd6 {[%emt 0:03:01]} 52. Bc2 {[%emt 0:00:27]} Ne4 {[%emt 0:00:47]} 53. Be1 {[%emt 0:00:08]} Bd6 {[%emt 0:00:25]} 54. Bd1 {[%emt 0:00:29]} Kd7 {[%emt 0:02:11]} 55. Bc2 {[%emt 0:01:31]} Bb8 {[%emt 0:00:45]} 56. Bd1 {[%emt 0:00:24]} Kc6 {[%emt 0:00:26]} 57. Bc2 {[%emt 0:00:52]} Nd6 {[%emt 0:00:39]} 58. Bd2 {[%emt 0:01:26]} Ne8 {[%emt 0:00:36]} 59. Be1 {[%emt 0:00:19]} Ng7 {[%emt 0:00:18]} 60. Bg3 {[%emt 0:00:29]} Ne6 {[%emt 0:00:24]} 61. Bd1 {[%emt 0:00:34]} Bd6 {[%emt 0:00:55]} 62. Bf3 {[%emt 0:01:03]} Nd8 {[%emt 0:02:59]} 63. Bd1 {[%emt 0:00:50]} Bc7 {[%emt 0:00:17]} 64. Bf3 {[%emt 0:00:27]} Kd6 {[%emt 0:00:11]} 65. Bd1 {[%emt 0:00:17]} Nc6 {[%emt 0:00:12]} 66. Bc2 {[%emt 0:00:51]} Na5 {[%emt 0:00:47]} 67. Bd1 {[%emt 0:01:07]} Ke6 {[%emt 0:01:26]} 68. Bc2 {[%emt 0:00:16]} Bd6 {[%emt 0:00:14]} 69. Bd1 {[%emt 0:00:18]} Kd7 {[%emt 0:00:13]} 70. Bc2 {[%emt 0:00:28]} Kc6 {[%emt 0:00:32]} 71. Bd1 {[%emt 0:01:42]} Nb3 {[%emt 0:03:58]} 72. Be2 {[%emt 0:04:13]} Nc1 {[%emt 0:02:49]} 73. Kd2 {[%emt 0:01:46]} Nb3+ {[%emt 0:00:36]} (73... Nxe2 $15 74. Kxe2 Kb6) 74. Ke3 {[%emt 0:00:04]} Kd7 {[%emt 0:00:52]} 75. Bf3 {[%emt 0:00:48]} Ke6 {[%emt 0:00:10]} 76. Be2 {[%emt 0:00:05]} Bb8 {[%emt 0:00:48]} 77. Bf3 {[%emt 0:00:46]} Bc7 {[%emt 0:00:30]} 78. Be2 {[%emt 0:00:20]} Bb6 {[%emt 0:00:34]} 79. Bd1 {[%emt 0:01:06]} Ba5 {[%emt 0:00:15]} 80. Bc2 {[%emt 0:02:42]} Bb6 {[%emt 0:00:51]} 81. Bd1 {[%emt 0:00:07]} Nc1 {[%emt 0:00:59]} 82. Bc2 {[%emt 0:00:53]} Nb3 {[%emt 0:00:31]} 83. Bd1 {[%emt 0:00:14]} Na5 {[%emt 0:00:33]} 84. Bc2 {[%emt 0:00:26]} Nc6 {[%emt 0:00:34]} 85. Bd1 {[%emt 0:00:28]} Ne7 {[%emt 0:00:28]} 86. Bc2 {[%emt 0:00:18]} Nc8 {[%emt 0:00:12]} 87. Bd1 {[%emt 0:00:16]} Nd6 {[%emt 0:00:07]} 88. Bc2 {[%emt 0:00:32]} Ne4 {[%emt 0:01:01]} 89. Be1 {[%emt 0:00:19]} Bc7 {[%emt 0:00:18]} 90. Bd1 {[%emt 0:00:15]} Bd6 {[%emt 0:00:40]} 91. Bc2 {[%emt 0:00:10]} b6 {[%emt 0:00:29]} 92. Bd1 {[%emt 0:00:08]} Kd7 {[%emt 0:01:40]} 93. Bc2 {[%emt 0:00:33]} Kc6 {[%emt 0:00:48]} 94. Bd1 {[%emt 0:00:20]} Be7 {[%emt 0:00:28]} 95. Bc2 {[%emt 0:00:11]} Nd6 {[%emt 0:00:19]} 96. Bd1 {[%emt 0:00:15]} Ne8 {[%emt 0:00:11]} 97. Bf3 {[%emt 0:00:19]} Nc7 {[%emt 0:00:20]} 98. Bg3 {[%emt 0:00:11]} Ne6 {[%emt 0:00:09]} 99. Bd1 {[%emt 0:00:26]} Bd6 {[%emt 0:00:25]} 100. Bf3 {[%emt 0:00:26]} Nc7 {[%emt 0:02:29]} 101. Bd1 {[%emt 0:00:18]} Kb7 {[%emt 0:01:06]} 102. Bc2 {[%emt 0:00:34]} Ka6 {[%emt 0:00:25]} 103. Bd1 {[%emt 0:00:29]} Ka5 {[%emt 0:00:12]} 104. Bc2 {[%emt 0:00:49]} Bf8 {[%emt 0:00:19]} 105. Be1 {[%emt 0:00:29]} Ne8 {[%emt 0:01:10]} 106. Bd1 {[%emt 0:00:22]} Nd6 {[%emt 0:00:34]} 107. Bc2 {[%emt 0:00:15]} Ne4 {[%emt 0:00:33]} 108. Bd1 {[%emt 0:00:08]} Ka6 {[%emt 0:03:01]} 109. Bc2 {[%emt 0:00:16]} Kb7 {[%emt 0:00:28]} 110. Bd1 {[%emt 0:00:05]} Kc6 {[%emt 0:00:04]} 111. Bc2 {[%emt 0:00:08]} Nd6 {[%emt 0:00:10]} 112. Bd1 {[%emt 0:00:17]} Nb7 {[%emt 0:00:15]} 113. Bc2 {[%emt 0:00:32]} Na5 {[%emt 0:00:18]} 114. Bg3 {[%emt 0:01:11]} Nb3 {[%emt 0:00:13]} 115. Bd1 {[%emt 0:00:37]} Bd6 {[%emt 0:00:28]} 116. Be2 {[%emt 0:00:10]} Nc1 {[%emt 0:00:32]} 117. Kd2 {[%emt 0:00:48]} Nxe2 {[%emt 0:00:22]} 118. Kxe2 {[%emt 0:00:04]} Kb7 {[%emt 0:01:49]} 119. Kd2 {[%emt 0:00:26]} Ka6 {[%emt 0:00:14]} 120. Kc2 {[%emt 0:00:17]} Ka5 {[%emt 0:00:07]} 121. Kb1 $11 {[%emt 0:00:12]} Ka4 {[%emt 0:01:03]} 122. Ka2 {[%emt 0:02:44]} Bb8 {[%emt 0:00:09]} 123. Bh2 {[%emt 0:00:08]} Bc7 {[%emt 0:00:04]} 124. Bg3 {[%emt 0:00:05]} Bb8 {[%emt 0:00:10]} 125. Bh2 {[%emt 0:00:04]} Bc7 {[%emt 0:00:04]} 126. Bg3 {[%emt 0:00:02]} Bd6 {[%emt 0:00:04]} 127. Bh2 {[%emt 0:00:13]} Bc7 {[%emt 0:04:05]} 1/2-1/2

[Event "WTCC-50 2018"]
[Site "Radebeul"]
[Date "2018.07.10"]
[Round "4"]
[White "Chan, Peng Kong"]
[Black "Wuttke, Hans"]
[Result "1/2-1/2"]
[ECO "A04"]
[WhiteElo "2158"]
[BlackElo "2160"]
[Annotator "NA"]
[PlyCount "33"]
[EventDate "2018.07.07"]
[EventType "team-tourn"]
[EventCountry "GER"]
[SourceTitle "playchess.com"]
[Source "ChessBase"]
[SourceQuality "1"]
[TimeControl "40/5400+30:1800+30"]

1. Nf3 {[%emt 0:06:16]} e6 {[%emt 0:00:16]} 2. c4 {[%emt 0:00:48]} c5 {[%emt 0:00:18]} 3. g3 {[%emt 0:00:36]} b6 {[%emt 0:02:12]} 4. Bg2 {[%emt 0:00:12]} Bb7 {[%emt 0:00:01]} 5. O-O {[%emt 0:00:22]} Nf6 {[%emt 0:00:08]} 6. b3 {[%emt 0:05:39]} Be7 {[%emt 0:00:39]} 7. Bb2 {[%emt 0:00:08]} O-O {[%emt 0:00:11]} 8. Nc3 {[%emt 0:04:15]} d6 {[%emt 0:03:57]} 9. d4 {[%emt 0:04:56]} cxd4 {[%emt 0:03:09]} 10. Qxd4 {[%emt 0:00:08]} a6 {[%emt 0:03:06]} 11. Rfd1 {[%emt 0:00:29]} Nbd7 {[%emt 0:00:44]} 12. Rac1 {[%emt 0:00:58]} Qc7 {[%emt 0:03:47]} 13. e4 {[%emt 0:07:57]} Rfe8 {[%emt 0:03:24]} 14. Ne1 {[%emt 0:07:10]} Rad8 {[%emt 0:03:54]} 15. Nc2 {[%emt 0:01:06]} Bf8 {[%emt 0:01:09]} 16. Ne3 {[%emt 0:01:53]} Qb8 {[%emt 0:01:12]} 17. Qd2 {[%emt 0:05:45]} 1/2-1/2

[Event "WTCC-50 2018"]
[Site "Radebeul"]
[Date "2018.07.10"]
[Round "4"]
[White "Ernst, Michael"]
[Black "Sazonova, Elena N"]
[Result "1/2-1/2"]
[ECO "A48"]
[WhiteElo "2156"]
[BlackElo "2146"]
[Annotator "NA"]
[PlyCount "48"]
[EventDate "2018.07.07"]
[EventType "team-tourn"]
[EventCountry "GER"]
[SourceTitle "playchess.com"]
[Source "ChessBase"]
[SourceQuality "1"]
[TimeControl "40/5400+30:1800+30"]

1. d4 {[%emt 0:00:00]} Nf6 {[%emt 0:00:00]} 2. Nf3 {[%emt 0:00:00]} g6 {[%emt 0:00:50]} 3. Bf4 {[%emt 0:00:00]} Bg7 {[%emt 0:00:25]} 4. h3 {[%emt 0:00:01]} O-O {[%emt 0:01:06]} 5. e3 {[%emt 0:00:08]} d6 {[%emt 0:00:24]} 6. Be2 {[%emt 0:00:37]} Nbd7 {[%emt 0:00:38]} 7. O-O {[%emt 0:00:46]} Qe8 {[%emt 0:00:47]} 8. Bh2 {[%emt 0:00:12]} e5 {[%emt 0:00:36]} 9. c4 {[%emt 0:00:24]} Qe7 {[%emt 0:01:01]} 10. Nc3 {[%emt 0:00:11]} c6 {[%emt 0:00:16]} 11. b4 {[%emt 0:01:24]} Rd8 {[%emt 0:01:14]} 12. Qc2 {[%emt 0:02:27]} Nf8 {[%emt 0:03:15]} 13. c5 {[%emt 0:07:29]} dxc5 {[%emt 0:07:37]} 14. dxc5 {[%emt 0:01:24]} Nd5 {[%emt 0:11:12]} 15. Nxd5 {[%emt 0:03:19]} Rxd5 {[%emt 0:04:20]} 16. Bc4 {[%emt 0:03:51]} Rd8 {[%emt 0:01:00]} 17. Rad1 {[%emt 0:02:34]} Bf5 {[%emt 0:05:15]} 18. Qc3 {[%emt 0:13:03]} Rxd1 {[%emt 0:12:08]} 19. Rxd1 {[%emt 0:01:42]} Re8 {[%emt 0:01:07]} 20. Qd2 {[%emt 0:14:25]} Be4 {[%emt 0:12:15]} 21. Qd6 {[%emt 0:02:45]} Bxf3 {[%emt 0:01:11]} 22. Qxe7 {[%emt 0:00:09]} Rxe7 {[%emt 0:00:05]} 23. gxf3 {[%emt 0:00:17]} Rd7 {[%emt 0:01:11]} 24. Rxd7 {[%emt 0:01:09]} Nxd7 {[%emt 0:00:13]} 1/2-1/2

[Event "WTCC-50 2018"]
[Site "Radebeul"]
[Date "2018.07.10"]
[Round "4"]
[White "Frostick, Clive A"]
[Black "Boehm, Martin"]
[Result "1/2-1/2"]
[ECO "B40"]
[WhiteElo "2133"]
[BlackElo "2172"]
[Annotator "NA"]
[PlyCount "38"]
[EventDate "2018.07.07"]
[EventType "team-tourn"]
[EventCountry "GER"]
[SourceTitle "playchess.com"]
[Source "ChessBase"]
[SourceQuality "1"]
[TimeControl "40/5400+30:1800+30"]

1. e4 {[%emt 0:00:00]} c5 {[%emt 0:00:16]} 2. Nf3 {[%emt 0:00:29]} e6 {[%emt 0:01:19]} 3. g3 {[%emt 0:04:35]} Nc6 {[%emt 0:03:08]} 4. Bg2 {[%emt 0:01:19]} d5 {[%emt 0:02:05]} 5. exd5 {[%emt 0:08:08]} exd5 {[%emt 0:00:32]} 6. d4 {[%emt 0:09:42]} Bg4 {[%emt 0:11:59]} 7. c3 {[%emt 0:09:33]} cxd4 {[%emt 0:04:18]} 8. O-O {[%emt 0:02:48]} Nf6 {[%emt 0:05:16]} 9. h3 {[%emt 0:15:51]} Bxf3 {[%emt 0:06:06]} 10. Qxf3 {[%emt 0:09:28]} Be7 {[%emt 0:00:28]} 11. Bg5 {[%emt 0:02:48]} O-O {[%emt 0:00:24]} 12. Bxf6 {[%emt 0:01:08]} Bxf6 {[%emt 0:00:07]} 13. Qxd5 {[%emt 0:00:14]} Qb6 {[%emt 0:10:54]} 14. Qb3 {[%emt 0:08:58]} Na5 {[%emt 0:01:17]} 15. Qxb6 {[%emt 0:05:11]} axb6 {[%emt 0:00:07]} 16. Nd2 {[%emt 0:02:15]} dxc3 {[%emt 0:00:32]} 17. bxc3 {[%emt 0:00:08]} Bxc3 {[%emt 0:01:57]} 18. Rad1 {[%emt 0:00:09]} Rfd8 {[%emt 0:01:50]} 19. Nb3 {[%emt 0:03:01]} Nxb3 1/2-1/2

[Event "WTCC-50 2018"]
[Site "Radebeul"]
[Date "2018.07.10"]
[Round "4"]
[White "Rensch, Toralf"]
[Black "Schultz, Andreas"]
[Result "1/2-1/2"]
[ECO "C07"]
[WhiteElo "2088"]
[BlackElo "2211"]
[Annotator "NA"]
[PlyCount "41"]
[EventDate "2018.07.07"]
[EventType "team-tourn"]
[EventCountry "GER"]
[SourceTitle "playchess.com"]
[Source "ChessBase"]
[SourceQuality "1"]
[TimeControl "40/5400+30:1800+30"]

1. e4 {[%emt 0:00:00]} e6 {[%emt 0:00:00]} 2. d4 {[%emt 0:00:24]} d5 {[%emt 0:00:00]} 3. Nd2 {[%emt 0:00:46]} c5 {[%emt 0:00:02]} 4. Ngf3 {[%emt 0:06:06]} Nf6 {[%emt 0:10:20]} 5. exd5 {[%emt 0:02:28]} exd5 {[%emt 0:00:11]} 6. Bb5+ {[%emt 0:01:13]} Bd7 {[%emt 0:01:21]} 7. Qe2+ {[%emt 0:02:26]} Be7 {[%emt 0:02:48]} 8. dxc5 {[%emt 0:02:45]} O-O {[%emt 0:00:26]} 9. O-O {[%emt 0:06:00]} Bxc5 {[%emt 0:04:08]} 10. Bxd7 {[%emt 0:01:18]} Qxd7 {[%emt 0:02:19]} 11. Nb3 {[%emt 0:04:57]} Bb6 {[%emt 0:05:35]} 12. Bg5 {[%emt 0:03:39]} Ne4 {[%emt 0:03:31]} 13. Rad1 {[%emt 0:04:30]} Nxg5 {[%emt 0:04:13]} 14. Nxg5 {[%emt 0:01:11]} Qf5 {[%emt 0:00:20]} 15. Nf3 {[%emt 0:02:23]} Nc6 {[%emt 0:03:57]} 16. Qd3 {[%emt 0:04:32]} Qf6 {[%emt 0:05:01]} 17. c3 {[%emt 0:00:55]} Rad8 {[%emt 0:00:39]} 18. Nbd4 {[%emt 0:02:10]} g6 {[%emt 0:04:12]} 19. Rfe1 {[%emt 0:02:37]} Rfe8 {[%emt 0:03:34]} 20. Kf1 {[%emt 0:06:15]} Kf8 {[%emt 0:04:04]} 21. Qd2 {[%emt 0:02:39]} 1/2-1/2

[Event "WTCC-50 2018"]
[Site "Radebeul"]
[Date "2018.07.10"]
[Round "4"]
[White "Berndt, Matthias"]
[Black "Homer, Stephen J"]
[Result "1-0"]
[ECO "B26"]
[WhiteElo "2077"]
[BlackElo "2020"]
[Annotator "NA"]
[PlyCount "65"]
[EventDate "2018.07.07"]
[EventType "team-tourn"]
[EventCountry "GER"]
[SourceTitle "playchess.com"]
[Source "ChessBase"]
[SourceQuality "1"]
[TimeControl "40/5400+30:1800+30"]

1. e4 {[%emt 0:00:00]} c5 {[%emt 0:00:00]} 2. d3 {[%emt 0:00:01]} Nc6 {[%emt 0:00:16]} 3. g3 {[%emt 0:00:07]} g6 {[%emt 0:01:16]} 4. Bg2 {[%emt 0:00:09]} Bg7 {[%emt 0:00:05]} 5. Nc3 {[%emt 0:00:29]} d6 {[%emt 0:00:05]} 6. Be3 {[%emt 0:00:50]} Rb8 {[%emt 0:02:13]} 7. f4 {[%emt 0:03:58]} e6 {[%emt 0:02:13]} 8. Qd2 {[%emt 0:02:14]} Nge7 {[%emt 0:00:31]} 9. g4 {[%emt 0:05:38]} h5 {[%emt 0:14:50]} 10. gxh5 {[%emt 0:05:39]} Rxh5 {[%emt 0:00:05]} 11. Nf3 {[%emt 0:03:03]} Nd4 {[%emt 0:11:45]} 12. O-O {[%emt 0:11:43]} Nec6 {[%emt 0:03:26]} 13. Nd1 {[%emt 0:02:50]} Qa5 {[%emt 0:09:27]} 14. Qf2 {[%emt 0:05:13]} Qa4 {[%emt 0:01:39]} 15. Ne1 {[%emt 0:04:23]} Qa5 {[%emt 0:04:12]} 16. Bd2 {[%emt 0:03:55]} Qd8 {[%emt 0:02:54]} 17. c3 {[%emt 0:00:18]} Nb5 {[%emt 0:00:21]} 18. Nf3 {[%emt 0:00:45]} Nc7 {[%emt 0:03:53]} 19. Qg3 {[%emt 0:03:40]} d5 {[%emt 0:01:03]} 20. Ng5 {[%emt 0:05:35]} Qd6 {[%emt 0:10:50]} 21. Ne3 {[%emt 0:03:56]} Kf8 {[%emt 0:03:26]} 22. Rae1 {[%emt 0:03:35]} Bd7 {[%emt 0:00:33]} 23. Bf3 {[%emt 0:05:34]} Rh8 {[%emt 0:00:47]} 24. h4 {[%emt 0:05:23]} b5 {[%emt 0:01:38]} 25. Re2 {[%emt 0:00:24]} d4 {[%emt 0:06:11]} 26. Ng4 {[%emt 0:10:07]} dxc3 {[%emt 0:00:44]} 27. bxc3 {[%emt 0:00:11]} b4 {[%emt 0:04:33]} 28. cxb4 {[%emt 0:05:02]} Nd4 {[%emt 0:09:05]} 29. Rg2 {[%emt 0:00:47]} Nxf3+ {[%emt 0:00:35]} 30. Rxf3 {[%emt 0:02:29]} Nb5 {[%emt 0:02:49]} 31. Nxf7 {[%emt 0:02:29]} Kxf7 {[%emt 0:00:02]} 32. Ne5+ {[%emt 0:00:07]} Bxe5 {[%emt 0:00:10]} 33. fxe5+ {[%emt 0:00:10]} 1-0

[Event "WTCC-50 2018"]
[Site "Radebeul"]
[Date "2018.07.10"]
[Round "4"]
[White "Bowmer, Kevin"]
[Black "Titscher, Libor"]
[Result "1-0"]
[ECO "B39"]
[WhiteElo "2039"]
[BlackElo "2306"]
[Annotator "ChessBase"]
[PlyCount "90"]
[EventDate "2018.07.07"]
[EventType "team-tourn"]
[EventCountry "GER"]
[SourceTitle "playchess.com"]
[Source "ChessBase"]
[SourceQuality "1"]
[TimeControl "40/5400+30:1800+30"]

1. e4 {[%emt 0:00:00]} c5 {[%emt 0:00:00]} 2. Nf3 {[%emt 0:00:00]} Nc6 {[%emt 0:00:00]} 3. d4 {[%emt 0:00:11]} cxd4 {[%emt 0:00:24]} 4. Nxd4 {[%emt 0:00:23]} g6 {[%emt 0:00:02]} 5. c4 {[%emt 0:00:46]} Bg7 {[%emt 0:00:05]} 6. Be3 {[%emt 0:00:22]} Nf6 {[%emt 0:00:08]} 7. Nc3 {[%emt 0:01:33]} Ng4 {[%emt 0:00:28]} 8. Qxg4 {[%emt 0:00:36]} Nxd4 {[%emt 0:00:08]} 9. Qd1 {[%emt 0:00:18]} Ne6 {[%emt 0:00:04]} 10. Rc1 {[%emt 0:01:23]} Qa5 {[%emt 0:00:15]} 11. Bd3 {[%emt 0:01:53]} b6 {[%emt 0:02:43]} 12. Qd2 {[%emt 0:07:08]} g5 {[%emt 0:00:15]} 13. O-O {[%emt 0:13:09]} Qe5 {[%emt 0:03:18]} 14. b3 {[%emt 0:05:53]} Bb7 {[%emt 0:06:48]} 15. Nd5 {[%emt 0:06:38]} h5 {[%emt 0:11:14]} 16. f3 {[%emt 0:08:36]} h4 {[%emt 0:04:39]} 17. Bb1 {[%emt 0:13:02]} d6 {[%emt 0:13:44]} 18. Rcd1 {[%emt 0:06:32]} Kf8 {[%emt 0:08:31]} 19. a4 {[%emt 0:09:48]} Qb2 {[%emt 0:15:27]} 20. Qxb2 {[%emt 0:04:15]} Bxb2 {[%emt 0:00:18]} 21. Rf2 {[%emt 0:00:41]} Be5 {[%emt 0:04:07]} 22. Ra2 {[%emt 0:01:52]} Nf4 {[%emt 0:12:24]} 23. h3 {[%emt 0:03:05]} e6 {[%emt 0:01:49]} 24. Nc7 {[%emt 0:01:03]} Rd8 {[%emt 0:02:34]} 25. Nb5 {[%emt 0:01:06]} d5 {[%emt 0:01:43]} 26. Nxa7 {[%emt 0:01:55]} d4 {[%emt 0:00:07]} 27. Nb5 {[%emt 0:00:26]} Ke7 {[%emt 0:04:45]} 28. Nxd4 {[%emt 0:02:33]} Rd7 {[%emt 0:00:07]} 29. Rad2 {[%emt 0:01:22]} Rhd8 {[%emt 0:00:23]} 30. Kf1 {[%emt 0:00:50]} Bd6 {[%emt 0:04:34]} 31. Ne2 {[%emt 0:01:47]} Bc5 {[%emt 0:01:13]} 32. Bxc5+ {[%emt 0:01:38]} bxc5 {[%emt 0:00:07]} 33. Rxd7+ {[%emt 0:00:06]} Rxd7 {[%emt 0:00:01]} 34. Rxd7+ {[%emt 0:00:07]} Kxd7 {[%emt 0:00:07]} 35. Nxf4 {[%emt 0:00:25]} gxf4 {[%emt 0:00:02]} 36. e5 {[%emt 0:01:02]} Ke7 {[%emt 0:00:59]} 37. Be4 {[%emt 0:01:00]} Ba6 {[%emt 0:00:11]} 38. Ke2 {[%emt 0:00:16]} f5 {[%emt 0:00:01]} 39. exf6+ {[%emt 0:00:20]} Kxf6 {[%emt 0:00:05]} 40. Kd3 {[%emt 0:00:39]} Ke5 {[%emt 0:00:29]} 41. Kc3 {[%emt 0:32:17]} Kd6 {[%emt 0:30:35]} 42. b4 {[%emt 0:02:30]} cxb4+ {[%emt 0:01:56]} 43. Kxb4 {[%emt 0:00:09]} e5 {[%emt 0:00:08]} 44. a5 {[%emt 0:00:45]} Kc7 {[%emt 0:01:22]} 45. Kc5 {[%emt 0:00:19]} Bc8 {[%emt 0:00:32]} 1-0

[Event "WTCC-50 2018"]
[Site "Radebeul"]
[Date "2018.07.10"]
[Round "4"]
[White "Thurstan, Tim M"]
[Black "Schulenburg, Bernd"]
[Result "1-0"]
[ECO "A02"]
[WhiteElo "2035"]
[BlackElo "2152"]
[Annotator "NA"]
[PlyCount "99"]
[EventDate "2018.07.07"]
[EventType "team-tourn"]
[EventCountry "GER"]
[SourceTitle "playchess.com"]
[Source "ChessBase"]
[SourceQuality "1"]
[TimeControl "40/5400+30:1800+30"]

1. f4 {[%emt 0:00:00]} Nf6 {[%emt 0:00:06]} 2. Nf3 {[%emt 0:00:00]} c5 {[%emt 0:01:07]} 3. g3 {[%emt 0:00:26]} b5 {[%emt 0:01:10]} 4. Bg2 {[%emt 0:00:34]} Bb7 {[%emt 0:00:10]} 5. d3 {[%emt 0:08:56]} d5 {[%emt 0:01:51]} 6. Ne5 {[%emt 0:07:31]} Qc7 {[%emt 0:15:09]} 7. O-O {[%emt 0:06:13]} g6 {[%emt 0:06:46]} 8. Nd2 {[%emt 0:05:26]} Bg7 {[%emt 0:01:41]} 9. e4 {[%emt 0:03:05]} O-O {[%emt 0:02:56]} 10. Qe2 {[%emt 0:00:51]} e6 {[%emt 0:03:27]} 11. Rb1 {[%emt 0:05:05]} a5 {[%emt 0:12:14]} 12. b3 {[%emt 0:10:33]} Nc6 {[%emt 0:02:33]} 13. Nxc6 {[%emt 0:02:32]} Bxc6 {[%emt 0:00:07]} 14. e5 {[%emt 0:00:24]} Nd7 {[%emt 0:00:09]} 15. c3 {[%emt 0:03:13]} Rfb8 {[%emt 0:02:08]} 16. Nf3 {[%emt 0:04:08]} Bf8 {[%emt 0:01:47]} 17. g4 {[%emt 0:01:39]} Re8 {[%emt 0:03:57]} 18. Be3 {[%emt 0:07:03]} Qb7 {[%emt 0:03:55]} 19. Bf2 {[%emt 0:00:52]} a4 {[%emt 0:02:25]} 20. Bg3 {[%emt 0:00:37]} axb3 {[%emt 0:09:18]} 21. axb3 {[%emt 0:00:17]} Bg7 {[%emt 0:00:18]} 22. Rfe1 {[%emt 0:10:27]} Ra3 {[%emt 0:03:47]} 23. f5 {[%emt 0:04:31]} Nb6 {[%emt 0:14:01]} 24. d4 {[%emt 0:01:11]} c4 {[%emt 0:00:16]} 25. Qc2 {[%emt 0:05:10]} cxb3 {[%emt 0:02:08]} 26. Rxb3 {[%emt 0:00:08]} Rea8 {[%emt 0:00:06]} 27. fxe6 {[%emt 0:03:37]} fxe6 {[%emt 0:00:13]} 28. Bf1 {[%emt 0:00:43]} Nc4 {[%emt 0:02:36]} 29. Rxa3 {[%emt 0:00:17]} Rxa3 {[%emt 0:00:32]} 30. Bd3 {[%emt 0:02:02]} b4 {[%emt 0:02:16]} 31. cxb4 {[%emt 0:02:29]} Qxb4 {[%emt 0:00:13]} 32. Rb1 {[%emt 0:00:43]} Qc3 {[%emt 0:01:15]} 33. Qxc3 {[%emt 0:00:42]} Rxc3 {[%emt 0:00:04]} 34. Bxc4 {[%emt 0:00:16]} Rxc4 {[%emt 0:00:30]} 35. Rb8+ {[%emt 0:00:59]} Kf7 {[%emt 0:00:16]} 36. Ng5+ {[%emt 0:01:01]} Ke7 {[%emt 0:00:08]} 37. Nxh7 Rxd4 {[%emt 0:00:17]} 38. Bh4+ {[%emt 0:02:04]} Kd7 {[%emt 0:00:31]} 39. Nf6+ {[%emt 0:00:56]} Kc7 {[%emt 0:01:31]} 40. Rg8 {[%emt 0:01:31]} Bxf6 {[%emt 0:00:06]} 41. exf6 {[%emt 0:30:18]} Rd1+ {[%emt 0:34:59]} 42. Kf2 {[%emt 0:00:31]} Bb5 {[%emt 0:00:04]} 43. Bg3+ {[%emt 0:00:00]} Kd7 {[%emt 0:00:00]} 44. Rg7+ {[%emt 0:00:00]} Kc6 {[%emt 0:00:00]} 45. Rxg6 {[%emt 0:00:00]} Rf1+ {[%emt 0:00:00]} 46. Kg2 {[%emt 0:00:00]} d4 {[%emt 0:00:00]} 47. Bf2 {[%emt 0:00:00]} d3 {[%emt 0:00:00]} 48. f7 {[%emt 0:00:00]} d2 {[%emt 0:00:00]} 49. f8=Q {[%emt 0:00:00]} d1=Q {[%emt 0:00:00]} 50. Qc5+ {[%emt 0:00:00]} 1-0